Cogmind - Beta 17.1 @@@ ROGUE MODE // 2026.09.11 @ 03:34:19 Player: Somberlain Result: Destroyed by S-27 Virus with Autogun Performance ------------- Evolutions (5) 2500 Regions Visited (13) 2600 Robots Destroyed (136) 680 Value Destroyed (6489) 6489 Prototype IDs (28) 560 Alien Tech Used (0) 0 Bonus (4396) 4396 TOTAL SCORE: 17225 Bonus ------- High Alert Combat Kills 850 Follower Combat Kills 646 Entered Garrisons 600 Used RIF Installer 2000 Aligned with FarCom 300 Cogmind --------- Core Integrity 0/1000 Matter 230/300 Energy 96/100 System Corruption 17% Temperature Cool (0) Movement Core (50) Location -5/Upper Caves Parts ------- > --- POWER (2) -------- (None) > --- PROPULSION (4) --- (None) > --- UTILITY (7) ------ Advanced Hacking Suite Relay Coupler [Specialist] (22) Relay Coupler [Proto] (9) Relay Coupler [Proto] (9) > --- WEAPON (4) ------- Autogun > --- INVENTORY (5) ---- Relay Coupler [Proto] (9) Relay Coupler [Proto] (9) Peak State ------------ > --- POWER ------------ Improved Deuterium Engine > --- PROPULSION ------- Carbon-fiber Leg Carbon-fiber Leg Carbon-fiber Leg Improved Carbon-fiber Leg > --- UTILITY ---------- Advanced Cryofiber Web Advanced Heat Sink Large Storage Unit Core Analyzer Weapon Cycler Improved Weapon Cycler Advanced Reaction Control System > --- WEAPON ----------- Cooled Plasma Rifle Cooled Plasma Rifle Cooled Plasma Rifle Cooled Plasma Rifle > --- INVENTORY -------- Improved Heat Sink Improved Cooling System Improved Kinecellerator Point Defense System Relay Coupler [Swarmer] Relay Coupler [Specialist] Relay Coupler [Proto] Relay Coupler [Proto] Relay Coupler [Proto] Relay Coupler [Proto] Cooled Plasma Rifle Railgun Advanced Datajack Improved Plasma Cutter Great Maul [Rating: 88] Favorites ----------- Power Improved Deuterium Engine Engine Improved Deuterium Engine Power Core Light Fission Core Propulsion Carbon-fiber Leg Treads Armored Medium Treads Leg Carbon-fiber Leg Utility Hacking Suite Device Improved Heat Sink Storage Large Storage Unit Processor Improved Target Analyzer Hackware Hacking Suite Protection Improved Light Armor Plating Weapon Enhanced Autogun Energy Gun Cooled Plasma Rifle Energy Cannon Guided Plasma Cannon Ballistic Gun Enhanced Autogun Ballistic Cannon Bore Cannon Launcher Grenade Launcher Special Weapon Remote Datajack Impact Weapon Great Maul Slashing Weapon Axe Special Melee Weapon Advanced Datajack Build | -11 -10 -10 -10 -9 -8 -8 -8 -8 -7 -6 -6 -5 -5 ------- Run | Yrd Mat Min Exi Min Mat Gar Mat Gar Fac Fac Gar Fac Upp Slots Evolved 10 | . . . . . 4 . . . 2 2 . 2 . Power 1 | . . . . . . . . . . . . 1 . Propulsion 2 | . . . . . 1 . . . . . . 1 . Utility 5 | . . . . . 3 . . . 1 1 . . . Weapon 2 | . . . . . . . . . 1 1 . . . Parts Attached 146 | 7 . 7 1 . 18 6 3 25 24 1 26 26 2 Power 14 | 1 . 1 . . 1 1 . 2 2 . 3 3 . Engine 9 | 1 . 1 . . . . . 2 1 . 2 2 . Core 5 | . . . . . 1 1 . . 1 . 1 1 . Reactor . | . . . . . . . . . . . . . . Propulsion 26 | 2 . 2 . . 5 . . 5 5 . 3 4 . Treads 2 | . . . . . . . . . . . . 2 . Leg 24 | 2 . 2 . . 5 . . 5 5 . 3 2 . Wheel . | . . . . . . . . . . . . . . Hover . | . . . . . . . . . . . . . . Flight . | . . . . . . . . . . . . . . Utility 64 | 1 . 1 . . 7 4 3 16 11 . 10 11 . Device 27 | . . 1 . . 4 4 1 4 1 . 7 5 . Storage 6 | 1 . . . . 1 . 1 . 3 . . . . Processor 5 | . . . . . 1 . . 2 . . 1 1 . Hackware 23 | . . . . . 1 . . 9 7 . 2 4 . Protection 3 | . . . . . . . 1 1 . . . 1 . Artifact . | . . . . . . . . . . . . . . Weapon 42 | 3 . 3 1 . 5 1 . 2 6 1 10 8 2 Energy Gun 18 | 2 . 2 . . 1 . . . 1 . 4 8 . Energy Cannon 4 | . . 1 1 . . . . . 1 . 1 . . Ballistic Gun 10 | 1 . . . . 3 1 . . 1 . 3 . 1 Ballistic Cannon 3 | . . . . . . . . . 2 . 1 . . Launcher 1 | . . . . . 1 . . . . . . . . Special Weapon 2 | . . . . . . . . 1 . . . . 1 Impact Weapon 1 | . . . . . . . . . . 1 . . . Slashing Weapon 2 | . . . . . . . . 1 1 . . . . Piercing Weapon . | . . . . . . . . . . . . . . Special Melee Weapon 1 | . . . . . . . . . . . 1 . . Unidentified Prototypes 5 | . . . . . 2 . . . 2 . . 1 . Parts Lost 57 | . . . . . 1 3 . 4 6 1 12 26 4 Power 10 | . . . . . 1 . . 1 1 . 2 5 . Propulsion 14 | . . . . . . . . 1 2 . 3 7 1 Utility 17 | . . . . . . 2 . 1 1 1 4 8 . Weapon 16 | . . . . . . 1 . 1 2 . 3 6 3 Highest Loss Streak 15 | . . . . . 1 2 . 2 4 1 7 15 3 To Critical Strikes . | . . . . . . . . . . . . . . Average Backups 9 | . . 5 6 7 8 9 9 9 9 14 10 13 3 Power . | . . 1 1 1 1 1 1 . . . . . . Propulsion . | . . 1 2 2 . 2 2 . . 2 . . . Utility 4 | . . . 1 1 1 . . 3 4 4 6 9 2 Weapon 3 | . . 2 2 3 4 5 5 4 3 5 3 2 . Tool/Special . | . . . . . . . . . . . . . . Unused Backups 19 | . . 1 . . 3 . . 8 . . . 4 3 Power 2 | . . 1 . . 1 . . . . . . . . Propulsion . | . . . . . . . . . . . . . . Utility 15 | . . . . . 2 . . 7 . . . 3 3 Weapon 2 | . . . . . . . . 1 . . . 1 . Tool/Special . | . . . . . . . . . . . . . . Average Slot Usage (%) 90 | . 86 98 100 100 92 99 99 97 94 83 93 71 39 Engine 5 | . 14 14 14 14 7 . . 8 3 6 2 4 . Core 2 | . . . . . . 9 9 . 3 . 3 . . Leg 20 | . 28 28 28 28 26 27 27 26 19 14 17 12 . Device 13 | . . 12 14 14 14 24 19 11 7 5 13 20 . Storage 7 | . 14 14 14 14 12 9 9 9 7 6 6 4 . Processor 4 | . . . . . 3 1 . 6 7 6 6 3 4 Hackware 12 | . . . . . 8 9 9 13 22 20 17 1 23 Energy Gun 6 | . 14 20 23 14 6 . . . 1 . 6 17 . Energy Cannon 2 | . . 5 4 14 7 4 . . . . 3 . . Ballistic Gun 6 | . 14 1 . . 4 10 17 6 6 6 9 1 . Ballistic Cannon 2 | . . . . . . . . . 10 13 . . . Slashing Weapon 1 | . . . . . . . . 6 1 . . . . Peak Build Rating 88 | 6 7 18 24 24 39 42 40 47 56 58 73 88 58 Average Rating 47 | 4 6 14 19 24 32 39 37 39 50 53 59 67 46 On Entrance 33 | . 6 6 17 24 24 38 38 37 46 56 53 69 51 Avg Prop Armor Cover (%) 7 | . . . . . . . . 5 . . 7 6 . Naked Turns . | . . . . . . . . . . . . . . Heaviest Build 58 | 13 14 19 24 24 35 32 34 33 52 56 58 58 5 Greatest Support 63 | 20 20 30 30 30 51 51 51 54 58 56 54 63 27 Greatest Overweight (x) 12 | . . . . . . . . 1 1 1 2 12 . Average Overweight (x) . | . . . . . . . . . . . . . . Largest Inventory Capacity 15 | 8 8 8 8 8 10 10 10 10 15 15 15 15 5 Average Capacity 11 | 6 8 8 8 8 9 10 10 10 11 15 15 14 5 Most Carried 15 | . 2 8 7 7 10 10 10 10 13 15 15 15 4 Average Carried 9 | . . 5 6 7 8 9 9 9 9 14 10 13 3 Final Capacity 15 | 8 8 8 8 8 10 10 10 10 15 15 15 5 5 Final Carried 14 | . 2 6 7 7 10 8 10 10 13 13 14 5 2 Class Distribution -------------------- 18% | Scavenger-Mutant 16% | Mutant 15% | Bothacker-Mutant 13% | Hacker-Skirmisher 12% | Scavenger-Gunner 9% | Bothacker-Skirmisher 7% | Bothacker-Gunner Dominant Class ---------------- Mutant | -10/Materials Mutant | -10/Mines Scavenger-Mutant | -10/Exiles Mutant | -9/Mines Scavenger-Mutant | -8/Materials Scavenger-Mutant | -8/Garrison Mutant | -8/Materials Bothacker-Mutant | -8/Garrison Hacker-Skirmisher | -7/Factory Hacker-Skirmisher | -6/Factory Scavenger-Gunner | -6/Garrison Bothacker-Skirmisher | -5/Factory Bothacker-Mutant | -5/Upper Caves Resources | -11 -10 -10 -10 -9 -8 -8 -8 -8 -7 -6 -6 -5 -5 ----------- Run | Yrd Mat Min Exi Min Mat Gar Mat Gar Fac Fac Gar Fac Upp Matter Collected 4547 | 195 36 87 . 30 393 276 . 1188 1092 69 912 266 3 Remotely . | . . . . . . . . . . . . . . Salvage Created 4539 | . 36 42 . 27 641 689 40 866 642 39 860 581 76 Parts 245 | . 3 4 . 4 34 38 1 54 46 1 36 18 6 Haulers Intercepted 5 | . . . . . 2 . . . 3 . . . . Recyclers Shooed . | . . . . . . . . . . . . . . Parts Field Recycled . | . . . . . . . . . . . . . . Retrieved Matter . | . . . . . . . . . . . . . . Parts Self-Destructed 5 | . . . . . . . . . . . . . 5 Prevented 1 | . . . . . . . . . . . . . 1 Parts Restored . | . . . . . . . . . . . . . . Kills | -11 -10 -10 -10 -9 -8 -8 -8 -8 -7 -6 -6 -5 -5 ------- Run | Yrd Mat Min Exi Min Mat Gar Mat Gar Fac Fac Gar Fac Upp Combat Hostiles Destroyed 107 | . . 3 . 2 14 20 . 23 10 1 19 11 4 Melee 4 | . . . . . . . . 1 . . 1 1 1 Guns 49 | . . 3 . . 6 5 . 4 5 . 15 10 1 Cannons 33 | . . . . 2 2 11 . 11 5 . 1 . 1 AOE 16 | . . . . . 6 3 . 7 . . . . . Classes Destroyed 17 | . 2 1 . . 3 2 . 2 5 . 1 1 . Worker 6 | . . . . . . . . . 4 . . 2 . Builder 2 | . . . . . . . . . 2 . . . . Tunneler 2 | . . . . . . . . . 1 1 . . . Hauler 5 | . . . . . 2 . . . 3 . . . . Recycler 2 | . . . . . . . . . 2 . . . . Operator 4 | . 1 . . . 2 . . . 1 . . . . Watcher 5 | . 1 . . . 1 . 1 2 . . . . . Swarmer 39 | . . 3 . 2 5 8 . 7 4 . 6 . 4 Cutter 3 | . . . . . . . . 3 . . . . . Saboteur 1 | . . . . . . . . . . . . 1 . Grunt 25 | . . . . . 7 4 . 1 3 . 7 3 . Brawler 2 | . . . . . . 1 . . . . . 1 . Duelist 3 | . . . . . . . . 3 . . . . . Sentry 12 | . . . . . 2 4 . 5 . . 1 . . Specialist 1 | . . . . . . . . . . . 1 . . Hunter 4 | . . . . . . . . . 1 . 3 . . Programmer 20 | . . . . . . 3 . 6 2 1 2 6 . Best Kill Streak 11 | . 1 3 . 2 11 4 1 10 6 1 4 4 3 Combat Bots Only 11 | . . 3 . 2 11 4 . 10 3 1 4 3 3 Max Kills in Single Turn 3 | . 1 1 . 1 3 3 1 1 2 1 1 1 1 Gunslinging . | . . . . . . . . . . . . . . Exploded 3 | . . . . . 3 3 . 1 . . . . . Melee 1 | . . . . . . . . 1 . . 1 1 1 Uniques/NPCs Destroyed . | . . . . . . . . . . . . . . Combat | -11 -10 -10 -10 -9 -8 -8 -8 -8 -7 -6 -6 -5 -5 -------- Run | Yrd Mat Min Exi Min Mat Gar Mat Gar Fac Fac Gar Fac Upp Hostile Shots Fired 957 | . . 13 . 3 50 75 . 126 149 13 238 211 79 Missed 310 | . . 2 . . 15 21 . 44 58 3 80 67 20 Hits 647 | . . 11 . 3 35 54 . 82 91 10 158 144 59 Melee 9 | . . . . . . . . 6 . . . 3 . Projectile 638 | . . 11 . 3 35 54 . 76 91 10 158 141 59 AOE 8 | . . . . . . . . 3 . . 5 . . Critical Strikes 25 | . . . . . . 3 . 7 2 . 2 10 1 Actively Blocked 1 | . . . . . . . . . . . . 1 . Part Disruptions 1 | . . . . . . . . 1 . . . . . Damage Taken 10059 | . . 89 . 21 530 709 . 1237 1522 151 1871 3048 881 Core 2092 | . . 24 . . 73 61 . 223 294 16 394 735 272 Absorbed by Shields 72 | . . . . . . . . . . . 72 . . Redirected to Shielding 42 | . . . . . . . . . . . . 42 . Regen/Repaired (Parts) 276 | . . . . . . . . . 276 . . . . Core Remaining (%) 66 | 100 . . . 90 . . . 35 58 . 51 . . Volleys Fired 427 | . 3 5 . 2 53 59 1 109 82 . 49 49 15 Largest 4 | . 2 2 . 1 2 2 1 2 3 . 4 4 1 Hottest 220 | . 70 70 . 120 120 120 120 120 142 . 220 198 23 Shots Fired 727 | . 6 10 . 2 77 76 1 137 189 . 125 89 15 Gun 490 | . 6 10 . . 57 41 . 66 90 . 116 89 15 Cannon 175 | . . . . 2 17 33 1 27 86 . 9 . . Launcher 20 | . . . . . 3 2 . 15 . . . . . Special 42 | . . . . . . . . 29 13 . . . . Kinetic 391 | . 3 5 . . 45 41 . 66 154 . 60 2 15 Thermal 274 | . 3 5 . 2 29 33 1 27 22 . 65 87 . Explosive 20 | . . . . . 3 2 . 15 . . . . . Electromagnetic . | . . . . . . . . . . . . . . Robot Hit Streak 36 | . 4 5 . 3 19 26 14 36 8 . 16 11 6 Robot Miss Streak 7 | . 1 1 . . 5 2 . 5 7 . 5 3 7 Penetration Max 1 | . . . . . . . . . . . . 1 . Secondary Targets 12 | . . 1 . . 1 . . 1 2 . 5 2 . Max Gunslinging Chain 1 | . . 1 . . 1 . . 1 1 . 1 1 . Shots Hit Robots 449 | . 4 7 . 2 53 54 1 84 89 4 83 58 10 Core Hits 212 | . 3 4 . 2 26 23 1 43 31 1 44 27 7 Critical Kills 2 | . . . . . . . . . 2 . . . . Critical Parts Destroyed 13 | . . . . . . . . 2 6 1 2 1 1 Critical Strikes 30 | . . 1 . . 3 . . 3 14 1 3 4 1 Burn 9 | . . 1 . . 3 . . . 1 . 1 3 . Destroy 12 | . . . . . . . . 2 8 . 1 . 1 Blast 5 | . . . . . . . . . 5 . . . . Smash 3 | . . . . . . . . . . 1 1 1 . Sever 1 | . . . . . . . . 1 . . . . . Melee Attacks 119 | . . . . . . . . 30 1 4 77 3 4 Impact 76 | . . . . . . . . . . 4 66 2 4 Slashing 31 | . . . . . . . . 30 1 . . . . Piercing . | . . . . . . . . . . . . . . Sneak Attacks 8 | . . . . . . . . 2 1 1 2 2 . Combat Hostiles 1 | . . . . . . . . . . 1 . . . Follow-up Attacks . | . . . . . . . . . . . . . . Damage Inflicted 12442 | . 41 63 . 69 1572 1723 32 2474 2050 282 2005 1877 254 Guns 6118 | . 41 63 . . 654 353 . 482 982 . 1781 1661 101 Cannons 4099 | . . . . 69 578 1195 32 1056 1004 . 165 . . Explosions 1100 | . . . . . 340 175 . 585 . . . . . Melee 985 | . . . . . . . . 351 64 270 59 97 144 Ramming 140 | . . . . . . . . . . 12 . 119 9 Kinetic 3846 | . 16 37 . . 472 353 . 482 1682 . 620 83 101 Thermal 6371 | . 25 26 . 69 760 1195 32 1056 304 . 1326 1578 . Explosive 1100 | . . . . . 340 175 . 585 . . . . . Electromagnetic . | . . . . . . . . . . . . . . Impact 570 | . . . . . . . . . . 270 59 97 144 Slashing 415 | . . . . . . . . 351 64 . . . . Piercing . | . . . . . . . . . . . . . . Highest Corruption 17 | . . . . . . 3 3 3 1 . 9 17 17 Average Corruption 4 | . . . . . . 2 3 3 1 . 3 10 17 Corruption Purged . | . . . . . . . . . . . . . . Corruption Blocked 15 | . . . . . . . . . . . . 8 7 Effects 156 | . . . . . . 7 3 44 1 . 53 39 9 Message Errors 42 | . . . . . . 3 1 13 . . 14 9 2 Matter Fused 35 | . . . . . . . . 11 . . 14 9 1 Heat Flow Errors 20 | . . . . . . 1 1 6 . . 5 5 2 Energy Discharges 12 | . . . . . . 1 . 2 . . 5 2 2 Parts Rejected 2 | . . . . . . . 1 . . . 1 . . Parts Fused 4 | . . . . . . 1 . . . . 1 1 1 Data Loss (minor) 18 | . . . . . . . . 8 1 . 5 3 1 Data Loss (major) 9 | . . . . . . 1 . 4 . . 3 1 . Misfires 6 | . . . . . . . . . . . 2 4 . Alerts 2 | . . . . . . . . . . . 1 1 . Misdirections 1 | . . . . . . . . . . . . 1 . Weapon Failures 5 | . . . . . . . . . . . 2 3 . Overload Shots 4 | . . . . . . . . . . . . 4 . Overflow Damage 663 | . . . . . 5 116 . 180 35 134 72 97 24 Projectiles 237 | . . . . . 5 86 . 98 35 . 13 . . Explosions 45 | . . . . . . 30 . 15 . . . . . Melee 381 | . . . . . . . . 67 . 134 59 97 24 Knockbacks 4 | . . . . . . . . . 1 . . . 3 Impact 2 | . . . . . . . . . . . . . 2 Kinetic 1 | . . . . . . . . . 1 . . . . Secondary 1 | . . . . . . . . . . . . . 1 Self-Inflicted Damage 97 | . . . . . . . . 89 . . . 8 . Shots 3 | . . . . . . . . 3 . . . . . Rammed 29 | . . . . . . . . . . . . 6 23 Targets Rammed 53 | . . . . . . . . . . 1 . 29 23 Kicked 24 | . . . . . . . . . . 1 . 23 . Crushed . | . . . . . . . . . . . . . . Highest Temperature 330 | . 40 70 . 54 168 256 181 308 330 . 248 209 71 Average Temperature 92 | . 19 36 . 34 58 93 78 80 117 . 105 45 47 Received Heat Transfer 2002 | . . . . . 198 234 . 207 288 . 325 750 . Effects 3 | . . . . . . . . . 3 . . . . Energy Bleed 2 | . . . . . . . . . 2 . . . . Matter Decay 1 | . . . . . . . . . 1 . . . . Siege Activations . | . . . . . . . . . . . . . . Martial Activations . | . . . . . . . . . . . . . . Shielding Activations . | . . . . . . . . . . . . . . Robots Disrupted . | . . . . . . . . . . . . . . Combat Hostiles . | . . . . . . . . . . . . . . Robots Corrupted 2 | . . . . . . . . . . 1 . . 1 Combat Hostiles 2 | . . . . . . . . . . 1 . . 1 Parts Fried 6 | . . . . . . . . . . 1 2 3 . Impact Corruptions 7 | . . . . . . . . . . 4 1 1 1 Robots Melted 3 | . . . . . . 1 . . . . 2 . . Combat Hostiles 3 | . . . . . . 1 . . . . 2 . . Parts Melted 54 | . . 1 . . 12 12 . 10 2 . 7 10 . Heat Transferred 13388 | . 74 148 . 160 1909 2560 80 2080 666 . 2592 3119 . Parts Sabotaged . | . . . . . . . . . . . . . . Parts Stolen . | . . . . . . . . . . . . . . Parts Stripped . | . . . . . . . . . . . . . . Power Chain Reactions . | . . . . . . . . . . . . . . Alert | -11 -10 -10 -10 -9 -8 -8 -8 -8 -7 -6 -6 -5 -5 ------- Run | Yrd Mat Min Exi Min Mat Gar Mat Gar Fac Fac Gar Fac Upp Maximum Alert Level 5 | . . . . . 1 3 1 4 3 1 5 3 . Low Security (%) 34 | 100 100 100 . 100 88 14 . . . 95 46 . . Level 1 12 | . . . . . 11 10 100 4 9 4 16 24 . Level 2 27 | . . . . . . 49 . 27 71 . 8 60 . Level 3 14 | . . . . . . 25 . 34 18 . 9 14 . Level 4 9 | . . . . . . . . 33 . . 12 . . Level 5 1 | . . . . . . . . . . . 6 . . High Security . | . . . . . . . . . . . . . . Max Security . | . . . . . . . . . . . . . . Peak Influence 1838 | . 7 70 . 71 265 766 373 1589 833 215 1838 964 . Initial 964 | . . . . . 19 163 373 208 833 215 . 964 . Average 482 | . 1 7 . 24 56 527 348 932 511 62 496 540 . Influence Increases 5949 | . 18 70 . 81 605 633 7 1591 486 47 1948 383 80 Destroy 0b10 Robot/C 2520 | . . 60 . 60 400 400 . 580 200 20 500 220 80 Destroy 0b10 Robot/NC 140 | . 10 . . . 25 . 5 10 75 5 . 10 . Destroy Leader 290 | . 2 10 . 10 96 20 2 20 50 10 30 40 . Allied During Kill 120 | . . . . 11 39 . . 35 15 . 20 . . Successful Hack 60 | . 6 . . . 16 . . 14 . 12 12 . . Disable Machine 120 | . . . . . . . . 15 75 . 15 15 . Anti-Garrison Action 2000 | . . . . . . 100 . 700 . . 1200 . . Destroy Structure 264 | . . . . . 14 8 . 112 26 . 96 8 . Partial Spotted 15 | . . . . . . . . . . . . 15 . Lose Combat Pursuer 420 | . . . . . 15 105 . 105 45 . 75 75 . Influence Decreases 5770 | . 18 70 . 30 405 118 453 322 1634 488 110 1840 282 Entered New Map 2623 | . . . . . 32 88 393 112 756 226 . 874 142 Time Decay 1937 | . 18 70 . 30 303 . 60 . 538 262 . 556 100 Lost Part 530 | . . . . . 10 30 . 40 60 . 90 260 40 Lost Ally 530 | . . . . . 60 . . 170 280 . 20 . . Purge Threat 150 | . . . . . . . . . . . . 150 . Squads Dispatched 17 | . . 1 . . 1 . 1 . 6 1 . 7 . Investigation 2 | . . 1 . . . . . . . . . 1 . Extermination 6 | . . . . . . . . . 2 1 . 3 . Reinforcement 7 | . . . . . 1 . 1 . 3 . . 2 . Assault 2 | . . . . . . . . . 1 . . 1 . Garrison . | . . . . . . . . . . . . . . Intercept . | . . . . . . . . . . . . . . Searches Triggered . | . . . . . . . . . . . . . . Construction Impeded . | . . . . . . . . . . . . . . Haulers Reinforced . | . . . . . . . . . . . . . . Active Scanning Responses . | . . . . . . . . . . . . . . Cargo Convoy Interrupts 1 | . . . . . . . . . . . . 1 . Alert ID Control Effect 8 | . . . . . . . . 3 4 . 1 . . Stealth | -11 -10 -10 -10 -9 -8 -8 -8 -8 -7 -6 -6 -5 -5 --------- Run | Yrd Mat Min Exi Min Mat Gar Mat Gar Fac Fac Gar Fac Upp Distress Signals 12 | . . . . . 1 . . 6 5 . . . . Communications Jammed . | . . . . . . . . . . . . . . Distress Signals . | . . . . . . . . . . . . . . Times Spotted 209 | . 4 4 . 2 29 20 4 48 33 2 37 21 5 Peak Tracking Total 11 | . 2 3 . 2 10 5 3 8 9 1 11 7 5 Tactical Retreats 18 | . . . . . 1 3 . 6 3 . 3 2 . Traps | -11 -10 -10 -10 -9 -8 -8 -8 -8 -7 -6 -6 -5 -5 ------- Run | Yrd Mat Min Exi Min Mat Gar Mat Gar Fac Fac Gar Fac Upp Traps Triggered 9 | . . . . . . 4 . 4 . . 1 . . Indirectly . | . . . . . . . . . . . . . . Trap Hack Attempts . | . . . . . . . . . . . . . . Triggered . | . . . . . . . . . . . . . . Disarmed . | . . . . . . . . . . . . . . Reprogrammed . | . . . . . . . . . . . . . . Reused . | . . . . . . . . . . . . . . Traps Extracted . | . . . . . . . . . . . . . . Installed . | . . . . . . . . . . . . . . Triggered . | . . . . . . . . . . . . . . Machines | -11 -10 -10 -10 -9 -8 -8 -8 -8 -7 -6 -6 -5 -5 ---------- Run | Yrd Mat Min Exi Min Mat Gar Mat Gar Fac Fac Gar Fac Upp Machines Disabled 20 | . . . . . . 2 . 8 5 . 4 1 . Max in Single Turn 1 | . . . . . . 1 . 1 1 . 1 1 . Garrison Relay 10 | . . . . . . 2 . 6 . . 2 . . Machines Repaired . | . . . . . . . . . . . . . . Machines Dismantled . | . . . . . . . . . . . . . . Machines Sabotaged . | . . . . . . . . . . . . . . Overloaded Fab Kills . | . . . . . . . . . . . . . . Hacking | -11 -10 -10 -10 -9 -8 -8 -8 -8 -7 -6 -6 -5 -5 --------- Run | Yrd Mat Min Exi Min Mat Gar Mat Gar Fac Fac Gar Fac Upp Machines Accessed 31 | . 4 1 1 . 5 1 1 3 6 5 1 3 . Terminals 17 | . 3 . . . 3 1 . 3 3 1 1 2 . Fabricators 2 | . . . . . . . . . 1 1 . . . Repair Stations 5 | . 1 . . . . . . . 2 1 . 1 . Recycling Units . | . . . . . . . . . . . . . . Scanalyzers 2 | . . . . . 1 . . . . 1 . . . Garrison Access 3 | . . . . . 1 . 1 . . 1 . . . Total Hacks 61 | . 7 1 1 . 12 2 1 6 14 10 1 6 . Successful 29 | . 1 1 1 . 5 . 1 2 8 7 1 2 . Failed 32 | . 6 . . . 7 2 . 4 6 3 . 4 . Catastrophic 6 | . 1 . . . 1 1 . 1 1 . . 1 . Database Lockouts . | . . . . . . . . . . . . . . Manual 18 | . 5 . 1 . 7 . . . 4 . . 1 . Terminals 30 | . 5 . . . 8 2 . 6 4 1 1 3 . Fabricators 3 | . . . . . . . . . 1 2 . . . Repair Stations 18 | . 2 . . . . . . . 9 4 . 3 . Recycling Units . | . . . . . . . . . . . . . . Scanalyzers 5 | . . . . . 3 . . . . 2 . . . Garrison Access 3 | . . . . . 1 . 1 . . 1 . . . Terminal Hacks 8 | . . 1 1 . 1 . . 2 . 1 1 1 . Open Door 2 | . . 1 . . . . . 1 . . . . . Open DSF 1 | . . . . . . . . . . 1 . . . Unreport Threat 1 | . . . . . . . . . . . . 1 . Registered Components 1 | . . . . . 1 . . . . . . . . Garrison Registry 2 | . . . . . . . . 1 . . 1 . . Proto ID Catalog 1 | . . . 1 . . . . . . . . . . Fabricator Hacks 2 | . . . . . . . . . 1 1 . . . Build 2 | . . . . . . . . . 1 1 . . . Repair Station Hacks 11 | . 1 . . . . . . . 7 2 . 1 . Scan Component 6 | . . . . . . . . . 4 2 . . . Repair 3 | . . . . . . . . . 3 . . . . Refit 2 | . 1 . . . . . . . . . . 1 . Recycling Unit Hacks . | . . . . . . . . . . . . . . Scanalyzer 5 | . . . . . 3 . . . . 2 . . . Retrieve Study 5 | . . . . . 3 . . . . 2 . . . Garrison Access Hacks 3 | . . . . . 1 . 1 . . 1 . . . Unlock Access 3 | . . . . . 1 . 1 . . 1 . . . Unauthorized Hacks . | . . . . . . . . . . . . . . Terminals . | . . . . . . . . . . . . . . Fabricators . | . . . . . . . . . . . . . . Repair Stations . | . . . . . . . . . . . . . . Recycling Units . | . . . . . . . . . . . . . . Scanalyzers . | . . . . . . . . . . . . . . Garrison Access . | . . . . . . . . . . . . . . Data Cores Recovered 3 | . 1 . . . 2 . . . . . . . . Used 1 | . . . . . 1 . . . . . . . . Hacking Detections 22 | . 4 . . . 4 1 . 2 4 3 1 3 . Full Trace Events 1 | . . . . . . . . . . . . 1 . Feedback Events . | . . . . . . . . . . . . . . Feedback Blocked . | . . . . . . . . . . . . . . Robot Schematics Acquired . | . . . . . . . . . . . . . . Robots Built 4 | . . . . . . . . . 3 1 . . . Authchips . | . . . . . . . . . . . . . . Time 183 | . . . . . . . . . 67 116 . . . Total Robot Build Rating 15 | . . . . . . . . . 12 3 . . . Part Schematics Acquired . | . . . . . . . . . . . . . . Parts Built . | . . . . . . . . . . . . . . Authchips . | . . . . . . . . . . . . . . Time . | . . . . . . . . . . . . . . Total Part Build Rating . | . . . . . . . . . . . . . . Part Studies Acquired 5 | . . . . . 3 . . . . 2 . . . Parts Repaired 3 | . . . . . . . . . 3 . . . . Time 160 | . . . . . . . . . 160 . . . . Parts Recycled . | . . . . . . . . . . . . . . Recycled Matter . | . . . . . . . . . . . . . . Retrieved Matter . | . . . . . . . . . . . . . . Retrieved Components . | . . . . . . . . . . . . . . Parts Scanalyzed . | . . . . . . . . . . . . . . Part Schematics Acquired . | . . . . . . . . . . . . . . Parts Damaged . | . . . . . . . . . . . . . . Bothacking | -11 -10 -10 -10 -9 -8 -8 -8 -8 -7 -6 -6 -5 -5 ------------ Run | Yrd Mat Min Exi Min Mat Gar Mat Gar Fac Fac Gar Fac Upp Used RIF Installer 4 | . . . . . . 2 . 1 . . 1 . . Hotswap 1 | . . . . . . . . . . . 1 . . Alert ID Control 1 | . . . . . . . . 1 . . . . . Program Shield 1 | . . . . . . 1 . . . . . . . Robots Hacked 24 | . . . . . . . . 12 6 . 5 1 . Non-combat 2 | . . . . . . . . 1 . . . 1 . Combat 22 | . . . . . . . . 11 6 . 5 . . Robot Hacks Applied 25 | . . . . . . . . 12 6 . 6 1 . parse_system 1 | . . . . . . . . . . . 1 . . no_distress 1 | . . . . . . . . . . . . 1 . streamctrl_high 4 | . . . . . . . . 3 1 . . . . formatsys_high 19 | . . . . . . . . 9 5 . 5 . . Relay Couplers Released 43 | . . . . . . 8 . 26 . . 9 . . Machine Destruction 43 | . . . . . . 8 . 26 . . 9 . . Attached 19 | . . . . . . . . 9 5 . 2 3 . Fabnet Peak Effective % . | . . . . . . . . . . . . . . Robots Rewired 7 | . . . . . . . . 7 . . . . . Allies Hacked 2 | . . . . . . . . . 1 1 . . . Hacks Repelled . | . . . . . . . . . . . . . . Allies | -11 -10 -10 -10 -9 -8 -8 -8 -8 -7 -6 -6 -5 -5 -------- Run | Yrd Mat Min Exi Min Mat Gar Mat Gar Fac Fac Gar Fac Upp Total Allies 39 | . . 2 . 3 . . . 19 9 1 5 . . Largest Group 9 | . . 2 2 3 3 . . 9 7 1 3 2 . Highest-Rated Group 193 | . . 45 45 40 40 . . 193 161 26 120 64 . Highest-Rated Ally 90 | . . 31 31 16 16 . . 39 90 26 46 32 . Total Orders 9 | . . . . . . . . 6 . . 2 1 . STAY 6 | . . . . . . . . 4 . . 1 1 . ROAM 1 | . . . . . . . . 1 . . . . . FOLLOW 2 | . . . . . . . . 1 . . 1 . . Ally Attacks 211 | . . 1 . 2 42 . . 92 60 . 14 . . Total Damage 3642 | . . 22 . 11 454 . . 1458 1080 . 617 . . Kills 31 | . . . . 1 6 . . 9 7 . 8 . . Allies Corrupted . | . . . . . . . . . . . . . . Allies Melted . | . . . . . . . . . . . . . . Intel | -11 -10 -10 -10 -9 -8 -8 -8 -8 -7 -6 -6 -5 -5 ------- Run | Yrd Mat Min Exi Min Mat Gar Mat Gar Fac Fac Gar Fac Upp Active Infowar (turns) 3254 | . . . . . 37 616 . 522 1232 847 . . . Traps 3254 | . . . . . 37 616 . 522 1232 847 . . . Robot Analysis Total . | . . . . . . . . . . . . . . Derelict Logs Recovered 4 | . . 2 . 1 . . . . . . . . 1 Drone Launches . | . . . . . . . . . . . . . . Drone Recoveries . | . . . . . . . . . . . . . . Exploration | -11 -10 -10 -10 -9 -8 -8 -8 -8 -7 -6 -6 -5 -5 ------------- Run | Yrd Mat Min Exi Min Mat Gar Mat Gar Fac Fac Gar Fac Upp Turns Passed 13456 | 68 241 650 314 153 854 1186 130 2289 1526 860 3359 1626 200 Spaces Moved 7462 | 51 180 500 249 108 623 706 90 1276 877 461 1421 698 222 Core 306 | 5 . . . . . . . . . . . 83 218 Treads 7 | . . . . . . . . . . . . 3 4 Legs 7149 | 46 180 500 249 108 623 706 90 1276 877 461 1421 612 . Wheels . | . . . . . . . . . . . . . . Hover . | . . . . . . . . . . . . . . Flight . | . . . . . . . . . . . . . . Fastest Speed 50 | 50 120 120 120 120 105 130 130 110 110 105 105 50 50 Average Speed 134 | 113 120 120 120 120 109 130 130 125 117 172 167 158 52 Slowest Speed 650 | 120 120 120 120 120 130 130 130 200 195 190 270 650 170 Overloaded Moves . | . . . . . . . . . . . . . . Propulsion Burnouts . | . . . . . . . . . . . . . . Robots Hopped . | . . . . . . . . . . . . . . Potential Cave-ins . | . . . . . . . . . . . . . . Cave-ins Triggered . | . . . . . . . . . . . . . . Exploration Rate (%) 39 | 3 30 92 62 30 49 55 10 74 24 11 76 11 22 Regions Visited 13 Branch Regions 4 Pre-discovered Areas 1 | . . . . 1 . . . . . . . . . Known Exits Taken 3 | . . . . . 1 . 1 . . 1 . . . Unknown Exits Taken 7 | 1 1 1 1 1 . . . . 1 . . 1 . Scrap Searched 2 | . . 2 . . . . . . . . . . . Spaces Dug 35 | . . . . . 1 1 . 2 . . 30 1 . Terrain Destroyed 134 | . . . . . 13 3 . 52 25 . 34 7 . Melee 33 | . . . . . . . . 2 . . 30 1 . Projectile 37 | . . . . . 1 1 . . 25 . 4 6 . AOE 64 | . . . . . 12 2 . 50 . . . . . Terrain Rammed . | . . . . . . . . . . . . . . Walls Destroyed . | . . . . . . . . . . . . . . Machines Disabled . | . . . . . . . . . . . . . . Actions | -11 -10 -10 -10 -9 -8 -8 -8 -8 -7 -6 -6 -5 -5 --------- Run | Yrd Mat Min Exi Min Mat Gar Mat Gar Fac Fac Gar Fac Upp Total 10091 | 58 200 539 263 129 741 912 100 1803 1235 516 2191 1134 270 Wait 1544 | . 15 17 13 20 13 123 . 241 211 43 550 298 . Move 7452 | 50 179 499 248 107 623 705 90 1275 876 461 1420 697 222 Hop . | . . . . . . . . . . . . . . Pick Up 86 | . 2 4 1 . 13 1 1 24 6 3 21 10 . Fast Attach 84 | 7 . 3 . . 5 2 2 15 18 . 12 19 1 Attach 54 | . . . . . 4 2 . 11 4 2 19 9 3 Detach 30 | . . . . . 1 1 . 9 5 . 9 4 1 Swap 98 | . . 6 1 . 12 7 4 31 19 . 14 4 . Drop 95 | 1 1 5 . . 17 2 2 24 13 2 15 12 1 Fire 427 | . 3 5 . 2 53 59 1 109 82 . 49 49 15 Melee 119 | . . . . . . . . 30 1 4 77 3 4 Ram 6 | . . . . . . . . . . . . 6 . Kick 24 | . . . . . . . . . . 1 . 23 . Crush 23 | . . . . . . . . . . . . . 23 Escape Stasis 22 | . . . . . . 10 . 7 . . 5 . . Rewire 27 | . . . . . . . . 27 . . . . . Trap . | . . . . . . . . . . . . . . Miscellaneous . | . . . . . . . . . . . . . . Route ------- -11/Scrapyard -10/Materials -10/Mines (discovered 3 exits: [*Mat x2] / *Exi) -10/Exiles (discovered 2 exits: [*Min x2]) -9/Mines -8/Materials (discovered 2 exits: Fac / Gar) -8/Garrison (discovered 2 exits: *Mat x2) -8/Materials -8/Garrison (discovered 3 exits: *Fac x3) -7/Factory (discovered 2 exits: *Fac x2) -6/Factory -6/Garrison (discovered 3 exits: *Fac x3) -5/Factory -5/Upper Caves History --------- Turn | Location | Event 5 | -11/Scrapyard | Discovered new exit (range 14) 69 | -11/Scrapyard | Entered Materials 285 | -10/Materials | Discovered new exit (range 5) 304 | -10/Materials | Build established: Mutant 310 | -10/Materials | Entered Mines 372 | -10/Mines | Met a Derelict shopkeep closing up shop 464 | -10/Mines | Learned Materials terminal intel 467 | -10/Mines | Learned location of 1 exit from Materials 469 | -10/Mines | Discovered new exit (range 8) 607 | -10/Mines | Discovered new exit (range 8) 619 | -10/Mines | Joined a pair of Derelicts in attacking an 0b10 outpost 942 | -10/Mines | Build established: Scavenger-Mutant 954 | -10/Mines | Deemed a non-threat by the Exiles lab entrance 954 | -10/Mines | Discovered new exit (range 5) 960 | -10/Mines | Entered Exiles 960 | -10/Exiles | Accompanied by 2 allies 990 | -10/Exiles | Led the pair of lost Derelicts to a safe place 999 | -10/Exiles | Discovered new exit (range 14) 1023 | -10/Exiles | Met 8R-AWN 1043 | -10/Exiles | Met EX-HEX 1077 | -10/Exiles | Met EX-BIN 1095 | -10/Exiles | Aligned with FarCom system 1096 | -10/Exiles | Given EX-Vault access code 1125 | -10/Exiles | Opened EX-Vault 1132 | -10/Exiles | Found Gui. Plasma Cannon 1175 | -10/Exiles | Warned to stay clear of 0b10 Research branches 1211 | -10/Exiles | Met EX-DEC 1258 | -10/Exiles | Discovered new exit (range 14) 1274 | -10/Exiles | Left Exiles lab with Gui. Plasma Cannon 1274 | -10/Exiles | Entered Mines 1280 | -9/Mines | Assisted by bots powering up and referring to "LRC-V3" 1319 | -9/Mines | Met a Derelict bent on vengeance 1329 | -9/Mines | Learned location of Storage (-9) 1381 | -9/Mines | Discovered new exit (range 8) 1427 | -9/Mines | Entered Materials 1427 | -8/Materials | Accompanied by 3 allies 1427 | -8/Materials | Evolved 4 slots: Propulsion x1, Utility x3 1428 | -8/Materials | Identified exit to Factory 1429 | -8/Materials | Loaded intel: 12 terminal locations 2229 | -8/Materials | Destroyed 11 combat bots 2281 | -8/Materials | Identified exit to Garrison 2281 | -8/Materials | Entered Garrison 2513 | -8/Garrison | Triggered checkpoint 2643 | -8/Garrison | Discovered new exit (range 12) 2751 | -8/Garrison | Triggered checkpoint 2798 | -8/Garrison | Garrison Relay disabled 2821 | -8/Garrison | Garrison Relay disabled 2859 | -8/Garrison | Triggered checkpoint 2976 | -8/Garrison | Installed Relay Interface Framework 3161 | -8/Garrison | Triggered checkpoint 3415 | -8/Garrison | Expanded RIF knowledge: Program Shield 3425 | -8/Garrison | Discovered new exit (range 12) 3467 | -8/Garrison | Entered Materials 3597 | -8/Materials | Identified exit to Garrison 3597 | -8/Materials | Entered Garrison 3717 | -8/Garrison | Core integrity fell below 50% 3738 | -8/Garrison | Destroyed 10 combat bots 3792 | -8/Garrison | Triggered checkpoint 3808 | -8/Garrison | Build established: Mutant 3845 | -8/Garrison | Expanded RIF knowledge: Alert ID Control 3867 | -8/Garrison | Garrison Relay disabled 4056 | -8/Garrison | Discovered exit to Factory (range 26) 4056 | -8/Garrison | Discovered exit to Factory (range 65) 4056 | -8/Garrison | Discovered exit to Factory (range 61) 4225 | -8/Garrison | Triggered checkpoint 4349 | -8/Garrison | Triggered checkpoint 4364 | -8/Garrison | Garrison Relay disabled 4591 | -8/Garrison | Triggered checkpoint 4607 | -8/Garrison | Triggered checkpoint 4621 | -8/Garrison | Triggered checkpoint 4666 | -8/Garrison | Lost 4 allies 4668 | -8/Garrison | Garrison Relay disabled 4789 | -8/Garrison | Triggered checkpoint 4803 | -8/Garrison | Garrison Relay disabled 4974 | -8/Garrison | Build established: Bothacker-Mutant 5509 | -8/Garrison | Triggered checkpoint 5561 | -8/Garrison | Spotted B-75 Beast 5593 | -8/Garrison | Allies destroyed B-75 Beast 5604 | -8/Garrison | Lost 3 allies 5647 | -8/Garrison | Garrison Relay disabled 5703 | -8/Garrison | Garrison Relay disabled 5886 | -8/Garrison | Entered Factory 5886 | -7/Factory | Accompanied by 7 allies 5886 | -7/Factory | Evolved 2 slots: Utility x1, Weapon x1 6243 | -7/Factory | Lost 4 parts (1p2n1w) 6260 | -7/Factory | Lost 10 allies 6527 | -7/Factory | Repaired Flexi-carbon Leg 6579 | -7/Factory | Repaired Imp. Reaction Control System 6640 | -7/Factory | Repaired Enh. Autogun 6686 | -7/Factory | First assault squad dispatched 6838 | -7/Factory | Discovered new exit (range 16) 7044 | -7/Factory | Fabricated B-48 Gladiator? 7154 | -7/Factory | Build established: Hacker-Skirmisher 7320 | -7/Factory | Discovered new exit (range 5) 7412 | -7/Factory | Entered another Factory area 7412 | -6/Factory | Evolved 2 slots: Utility x1, Weapon x1 7748 | -6/Factory | Fabricated O-24 Administrator (x1) 8272 | -6/Factory | Identified exit to Garrison 8272 | -6/Factory | Entered Garrison 8724 | -6/Garrison | Lost 7 parts (2p2n2u1w) 8797 | -6/Garrison | Found Relay Coupler [Proto] 8804 | -6/Garrison | Found Relay Coupler [Proto] 8807 | -6/Garrison | Found Relay Coupler [Proto] 8814 | -6/Garrison | Found Relay Coupler [Proto] 9038 | -6/Garrison | Lost 3 parts (1n2w) 9312 | -6/Garrison | Build established: Scavenger-Gunner 9878 | -6/Garrison | Triggered checkpoint 10312 | -6/Garrison | Discovered new exit (range 11) 10351 | -6/Garrison | Expanded RIF knowledge: Hotswap 10414 | -6/Garrison | Discovered new exit (range 62) 10414 | -6/Garrison | Discovered new exit (range 66) 10414 | -6/Garrison | Discovered new exit (range 12) 10750 | -6/Garrison | Triggered checkpoint 10824 | -6/Garrison | Triggered checkpoint 10900 | -6/Garrison | Garrison Relay disabled 11190 | -6/Garrison | Triggered checkpoint 11206 | -6/Garrison | Garrison Relay disabled 11375 | -6/Garrison | Triggered checkpoint 11631 | -6/Garrison | Entered Factory 11631 | -5/Factory | Accompanied by 2 allies 11631 | -5/Factory | Evolved 2 slots: Power x1, Propulsion x1 11931 | -5/Factory | First assault squad dispatched 12075 | -5/Factory | Build established: Bothacker-Gunner 12169 | -5/Factory | Lost 3 parts (1p1n1u) 12465 | -5/Factory | Lost 15 parts (2p4n5u4w) 12524 | -5/Factory | System corruption reached 10% 12756 | -5/Factory | Build established: Bothacker-Skirmisher 12859 | -5/Factory | Cargo convoy interrupted 12995 | -5/Factory | Lost 4 parts (1p2n1w) 13223 | -5/Factory | Core integrity fell below 50% 13243 | -5/Factory | Discovered new exit (range 12) 13257 | -5/Factory | Entered Upper Caves 13262 | -5/Upper Caves | Learned 8 Factory zone layouts 13398 | -5/Upper Caves | Core integrity fell below 20% 13419 | -5/Upper Caves | Lost 3 parts (3w) 13457 | -5/Upper Caves | Destroyed by S-27 Virus with Autogun Last Messages --------------- 13388_ Adv. Datajack destroyed. 13389_ Slammed into S-27 Virus. 13397_ Corrupted Autogun self-destruct mechanism malfunctions. 13397_ Slammed into S-27 Virus. 13412_ System corrupted: Matter fused (-9). 13412_ Acquired 3 matter. 13413_ Slammed into S-27 Virus. 13426_ Arm. Medium Treads destroyed. 13428_ Acquired Corrupted Autogun. 13428_ Integrated Corrupted Autogun (+7). 13428_ Imp. Corruption Screen intercepted 7% system corruption. 13428_ Imp. Corruption Screen expended. 13434_ GJATX6G>8O8RGORBF SLMBCMHKGASNQ O| 13450_ S-27 Virus suffers critical hit (Destroy). 13450_ Destroyed Lgt. Nuclear Core. 13451_ System corrupted: Energy discharge (-31). 13451_ S-27 Virus destroyed. Map ----- +----------------------------------------------------+ | "???# #??????????????????????????????????????????? | | #??## #???????#??????????????????????????????????? | | #### #######%#??????????????????????????????????? | | #??????????????????????????????????? | | #??????????????????????????????????? | | ### ###"#??????????????????????????????????? | | ## ## #####???????????????????????????????? | | ## ## ###???????????######????????????? | | ## # # # ############# #????????????? | | ## ## # #?????????????? | | ### # ## # #?????????????? | | #?# # ## ########## #?????????????? | | #?# ## ### #????????# ##????????????? | | ### # # ## ##?# #??###???# ##???????????? | | ## ########## #### ### ##### ! ##??????????? | | # ##??????# ##### #??????????? | | ##?????# #??# #??????????? | | ## #?????######## #######??# ###??????????? | | ?## ##??##??????## ##????# ### #????????????? | | ??# ##??# ##?????# #?????# #????????????? | | ??# ##??# #?????#%%##?????# ####????????????? | | ?# #### #????## ######## #???????????????? | | # #?????# % % ## ##??????????????? | | # #####?????# %%% ## ##?????????????? | | ##????????### s% #?????????????? | | ##??###????# % @ #?????????????? | | #### ##???# ????????? | | ## ## ##??# ##### ????????? | | ###### # #### #???## ?????????? | | ???# ### ## ##???# ?????????? | | ??# # #?## ### #???## ??????????? | | ? #??## #?## #????## ??????????? | | ####???## #### ##????? ??????????? | | ????????# ##????# ???????????? | | ????????## ##????# ???????????? | | ?????#### #?????? ????????????? | | ??????# ##?????????????????????? | | ???????# ##??????????????????????? | | ???????# ## ##???????????????????????? | | ????????## ### ## ##????????????????????????? | | ??????????###??## #?????????????????????????? | | ????????????????## ##?????????????????????????? | | ?????????????????## #??????????????????????????? | | ??????????????????# #??????????????????????????? | | ??????????????????#####??????????????????????????? | | ?????????????????????????????????????????????????? | | ?????????????????????????????????????????????????? | | ?????????????????????????????????????????????????? | | ?????????????????????????????????????????????????? | | ?????????????????????????????????????????????????? | +----------------------------------------------------+ Best States ------------- Heat Dissipation 134 Energy Generation 18 Energy Capacity 290 Matter Stores 300 Matter Capacity 300 Sight Range 16 Terrain Scan Density 10 Base Temperature (-) 200 Corruption Block 15 Armor Coverage 150 Core Shielding 20 Propulsion Shielding 33 Weapon Cycling 30 Phase Shifting 5 Evasion (%) 65 Target Analysis 6 Core Analysis 6 Armor Integrity Analysis 30 Recoil Reduction 1 Offensive Hacking 20 Defensive Hacking 10 Relay Coupler Types 3 Relay Coupler Value 85 Item Schematics ----------------- None Robot Schematics ------------------ None Fabricated ------------ B-48 Gladiator | x3 | -7/Factory | Preloaded O-24 Administrator | x1 | -6/Factory | Preloaded Repaired ---------- Flexi-carbon Leg | 2% | -7/Factory Imp. Reaction Control System | 15% | -7/Factory Enh. Autogun | 31% | -7/Factory Studied --------- Carbon-fiber Leg | -8/Materials | Hacked Aluminum Leg | -8/Materials | Hacked Lgt. Deuterium Engine | -8/Materials | Hacked Imp. Carbon-fiber Leg | -6/Factory | Hacked Gatling Laser | -6/Factory | Hacked Alien Tech Used ----------------- None Achievements -------------- None Challenges ------------ None Game ------ Seed CoolingSapperFirepult Manual? 0 Play Time 01:50:40 Cumulative 99.8 hours Start 2026.09.11 @ 01:44:42 End 2026.09.11 @ 03:34:19 Sessions 1 Manual Loads 0 Difficulty Rogue Special Mode None Game No. 115 Rogue 115 Adventurer 0 Explorer 0 Win Type - Total 0 Types 0/0/0/0/0/0/0/0/0/0 Lore% 44 Gallery% 49 Achievement% 41 Wizard Run 0 Options --------- Layout 1 ASCII 0 Keyboard 0 Movement Mouse Keybinds 0 Fullscreen 2 Font 24/Smallcaps Map View 50x35 Zoom Use 0% Tactical HUD 1 Map Filters NONE Filters NONE Steam 1 RUN: 1ece26da-2fab-4f5a-910e-0ab5f421756d